fUSD/lending_fUSD_20260329
["ID","MTS","AMOUNT","RATE_DAILY","PERIOD"]
[419013407,1774752637919,-500.0,0.00011073,2]
[419013408,1774752637929,-500.0,0.00011073,2]
[419013409,1774752637938,-167.63692162,0.00011073,2]
[419013410,1774752637947,-500.30534857,0.00011073,2]
[419013411,1774752637956,-500.0,0.00011073,2]
[419013412,1774752637967,-200.33245203,0.00011073,2]
[419013413,1774752637977,-500.0,0.00011073,2]
[419013414,1774752637986,-500.0,0.00011073,2]
[419013415,1774752637996,-500.0,0.00011073,2]
[419013416,1774752638006,-500.0,0.00011073,2]
[419013417,1774752638016,-500.0,0.00011073,2]
[419013418,1774752638026,-500.0,0.00011073,2]
[419013419,1774752638036,-500.0,0.00011073,2]
[419013420,1774752638046,-500.0,0.00011073,2]
[419013421,1774752638056,-387.0,0.00011086,2]
[419013422,1774752638068,-69037.59133638,0.00011089,2]
[419013423,1774752638077,-150.99,0.00011089,2]
[419013424,1774752638087,-56710.47,0.00011089,2]
[419013425,1774752638096,-257.87,0.00011094,2]
[419013426,1774752638106,-174.078,0.00011098,2]
[419013427,1774752638115,-1616.683,0.00011098,2]
[419013428,1774752638124,-42679.90013248,0.00011099,2]
[419013429,1774752638134,-500.0,0.00011099,2]
[419013430,1774752638143,-24366.81486881,0.00011099,2]
[419013431,1774752638153,-1114.0,0.0001112,2]
[419013432,1774752638162,-321.0,0.0001112,2]
[419013433,1774752638172,-288.0,0.00011142,2]
[419013434,1774752638182,-3716.0,0.00011151,2]
[419013435,1774752638191,-266.85386156,0.00011162,2]
[419013436,1774752638201,-464.0,0.00011165,2]
[419013437,1774752638211,-200.0,0.00011165,2]
[419013438,1774752638220,-500.0,0.00011165,2]
[419013440,1774752638229,-500.0,0.00011165,2]
[419013441,1774752638239,-500.0,0.00011165,2]
[419013443,1774752638248,-500.0,0.00011165,2]
[419013445,1774752638258,-500.0,0.00011165,2]
[419013448,1774752638268,-500.0,0.00011165,2]
[419013450,1774752638277,-502.53715092,0.00011165,2]
[419013452,1774752638286,-500.0,0.00011165,2]
[419013453,1774752638295,-500.0,0.00011165,2]
[419013454,1774752638305,-500.0,0.00011165,2]
[419013455,1774752638315,-151.0,0.00011165,2]
[419013456,1774752638324,-500.0,0.00011165,2]
[419013457,1774752638333,-151.0,0.00011165,2]
[419013458,1774752638342,-524.30770411,0.00011165,2]
[419013459,1774752638352,-151.0,0.00011165,2]
[419013460,1774752638361,-151.0,0.00011165,2]
[419013461,1774752638370,-151.0,0.00011165,2]
[419013462,1774752638379,-151.0,0.00011165,2]
[419013463,1774752638388,-151.0,0.00011165,2]
[419013464,1774752638398,-500.0,0.00011165,2]
[419013465,1774752638407,-151.0,0.00011165,2]
[419013466,1774752638416,-500.0,0.00011165,2]
[419013467,1774752638425,-151.0,0.00011165,2]
[419013468,1774752638435,-500.0,0.00011165,2]
[419013469,1774752638447,-151.0,0.00011165,2]
[419013470,1774752638456,-586.99770711,0.00011165,2]
[419013471,1774752638466,-151.0,0.00011165,2]
[419013472,1774752638475,-1294.23570642,0.00011165,2]
[419013473,1774752638484,-2500000.0,0.00011172,2]
[419013474,1774752638494,-1000.0,0.00011172,2]
[419013475,1774752638505,-31077.5534,0.00011172,2]
[419013476,1774752638516,-166.66,0.00011178,2]
[419013477,1774752638527,-241.0,0.00011187,2]
[419013478,1774752638537,-150.0,0.000112,2]
[419013479,1774752638547,-900.0,0.00011219,2]
[419013480,1774752638667,-645.89,0.00011265,2]
[419013481,1774752638680,-151.0,0.00011269,2]
[419013482,1774752638690,-151.0,0.00011269,2]
[419013483,1774752638699,-1023.96434805,0.00011271,3]
[419013484,1774752638709,-500.0,0.00011273,2]
[419013485,1774752638719,-500.0,0.00011273,2]
[419013486,1774752638729,-500.0,0.00011273,2]
[419013487,1774752638738,-166.66,0.00011288,2]
[419013488,1774752638749,-500.0,0.00011296,3]
[419013489,1774752638759,-500.0,0.00011296,3]
[419013490,1774752638768,-500.0,0.00011296,3]
[419013491,1774752638778,-500.0,0.00011296,3]
[419013492,1774752638787,-500.0,0.00011296,3]
[419013493,1774752638797,-500.0,0.00011296,3]
[419013494,1774752638807,-500.0,0.00011296,3]
[419013495,1774752638816,-500.0,0.00011296,3]
[419013496,1774752638825,-500.0,0.00011296,3]
[419013497,1774752638835,-500.0,0.00011296,3]
[419013498,1774752638844,-500.0,0.00011296,3]
[419013499,1774752638853,-500.0,0.00011296,3]
[419013500,1774752638863,-500.0,0.00011296,3]
[419013501,1774752638873,-500.0,0.00011296,3]
[419013502,1774752638882,-500.0,0.00011296,3]
[419013503,1774752638892,-500.0,0.00011296,3]
[419013504,1774752638901,-500.0,0.00011296,3]
[419013505,1774752638911,-500.0,0.00011296,3]
[419013506,1774752638922,-500.0,0.00011296,3]
[419013507,1774752638932,-500.0,0.00011296,3]
[419013508,1774752638942,-500.0,0.00011296,3]
[419013509,1774752638951,-500.0,0.00011296,3]
[419013510,1774752638962,-500.0,0.00011296,3]
[419013511,1774752638972,-500.0,0.00011296,3]
[419013512,1774752638982,-500.0,0.00011296,3]
[419013513,1774752638991,-483.29461098,0.00011296,3]
[419013514,1774752639001,-152.53186786,0.00011296,3]
[419013515,1774752639011,-500.0,0.00011296,3]
[419013516,1774752639020,-500.0,0.00011296,3]
[419013517,1774752639030,-500.0,0.00011296,3]
[419013518,1774752639040,-500.0,0.00011296,3]
[419013519,1774752639050,-500.0,0.00011296,3]
[419013520,1774752639060,-503.95632491,0.00011296,3]
[419013521,1774752639069,-500.0,0.00011296,3]
[419013522,1774752639081,-500.0,0.00011296,3]
[419013523,1774752639091,-500.0,0.00011296,3]
[419013524,1774752639102,-500.0,0.00011296,3]
[419013525,1774752639112,-500.0,0.00011296,3]
[419013526,1774752639122,-500.0,0.00011296,3]
[419013527,1774752639132,-500.0,0.00011296,3]
[419013528,1774752639142,-508.56311436,0.00011296,3]
[419013529,1774752639151,-500.0,0.00011296,3]
[419013530,1774752639162,-500.0,0.00011296,3]
[419013531,1774752639171,-490.0,0.00011296,3]
[419013532,1774752639181,-500.0,0.00011296,3]
[419013533,1774752639191,-500.0,0.00011296,3]
[419013534,1774752639200,-490.0,0.00011296,3]
[419013535,1774752639209,-500.0,0.00011296,3]
[419013536,1774752639219,-500.0,0.00011296,3]
[419013537,1774752639228,-490.0,0.00011296,3]
[419013538,1774752639238,-500.0,0.00011296,3]
[419013539,1774752639247,-490.0,0.00011296,3]
[419013540,1774752639256,-500.0,0.00011296,3]
[419013541,1774752639266,-580.96645017,0.00011296,3]
[419013542,1774752639276,-490.0,0.00011296,3]
[419013543,1774752639286,-500.0,0.00011296,3]
[419013544,1774752639296,-490.0,0.00011296,3]
[419013545,1774752639306,-490.0,0.00011296,3]
[419013546,1774752639315,-500.0,0.00011296,3]
[419013547,1774752639328,-500.0,0.00011296,3]
[419013548,1774752639338,-500.0,0.00011296,3]
[419013549,1774752639347,-490.0,0.00011296,3]
[419013550,1774752639356,-490.0,0.00011296,3]
[419013551,1774752639366,-490.0,0.00011296,3]
[419013552,1774752639376,-500.0,0.00011296,3]
[419013553,1774752639385,-490.0,0.00011296,3]
[419013554,1774752639394,-490.0,0.00011296,3]
[419013555,1774752639404,-490.0,0.00011296,3]
[419013556,1774752639415,-490.0,0.00011296,3]
[419013557,1774752639424,-500.0,0.00011296,3]
[419013558,1774752639433,-490.0,0.00011296,3]
[419013559,1774752639443,-490.0,0.00011296,3]
[419013560,1774752639453,-490.0,0.00011296,3]
[419013561,1774752639462,-474.21241056,0.00011296,3]
[419013562,1774752639471,-490.0,0.00011296,3]
[419013563,1774752639481,-490.0,0.00011296,3]
[419013564,1774752639490,-490.0,0.00011296,3]
[419013565,1774752639499,-490.0,0.00011296,3]
[419013566,1774752639509,-490.0,0.00011296,3]
[419013567,1774752639518,-490.0,0.00011296,3]
[419013568,1774752639527,-492.58098477,0.00011296,3]
[419013569,1774752639536,-410.25,0.000113,2]
[419013570,1774752639546,-166.66,0.00011397,2]
[419013571,1774752639555,-42679.9001324,0.00011453,2]
[419013572,1774752639564,-459.96,0.00011494,2]
[419013573,1774752639574,-166.66,0.00011507,2]
[419013574,1774752639583,-24366.81486875,0.00011528,2]
[419013575,1774752639592,-645.89,0.00011539,2]
[419013576,1774752639602,-1600.0,0.00011603,2]
[419013577,1774752639612,-436.96672003,0.00011613,2]
[419013578,1774752639622,-436.96672003,0.00011613,2]
[419013579,1774752639632,-1000.0,0.00011621,2]
[419013580,1774752639642,-697.01734564,0.00011621,2]
[419013581,1774752639651,-1000.0,0.00011621,2]
[419013582,1774752639660,-548.50354711,0.00011621,2]
[419013583,1774752639671,-1000.0,0.00011621,2]
[419013584,1774752639680,-370.62839673,0.00011621,2]
[419013585,1774752639690,-1000.0,0.00011621,2]
[419013586,1774752639700,-242.64552133,0.00011621,2]
[419013587,1774752639710,-1000.0,0.00011621,2]
[419013588,1774752639720,-1000.0,0.00011621,2]
[419013589,1774752639730,-1102.02763596,0.00011621,2]
[419013590,1774752639739,-1000.0,0.00011621,2]
[419013591,1774752639748,-500.0,0.00011647,2]
[419013592,1774752639759,-257.87,0.00011678,2]
[419013594,1774752639769,-200.0,0.00011713,2]
[419013595,1774752639779,-349.93,0.00011719,2]
[419013596,1774752639788,-2000.0,0.00011731,2]
[419013597,1774752639798,-645.89,0.00011813,2]
[419013598,1774752639807,-500.85720681,0.00011821,2]
[419013599,1774752639817,-576.47577608,0.00011821,2]
[419013600,1774752639827,-1000.0,0.00011821,2]
[419013601,1774752639838,-626.99704096,0.00011877,2]
[419013602,1774752639847,-500.0,0.00011921,2]
[419013603,1774752639856,-42679.9001324,0.00012008,2]
[419013604,1774752639866,-255.0,0.00012014,2]
[419013605,1774752639875,-420.0,0.00012056,2]
[419013606,1774752639884,-652.31,0.00012057,2]
[419013607,1774752639893,-24366.81486875,0.00012062,2]
[419013608,1774752639902,-1680.0,0.00012068,2]
[419013609,1774752639912,-645.89,0.00012087,2]
[419013610,1774752639922,-5000.0,0.00012098,2]
[419013611,1774752639931,-250.0,0.00012098,2]
[419013612,1774752639940,-153.38,0.00012125,2]
[419013613,1774752639950,-547.14103911,0.00012168,2]
[419013614,1774752639959,-502.61387031,0.00012168,2]
[419013615,1774752639969,-502.80450242,0.00012168,2]
[419013616,1774752639978,-1500.0,0.00012168,2]
[419013617,1774752639987,-1500.0,0.00012168,2]
[419013618,1774752639996,-1500.0,0.00012168,2]
[419013619,1774752640007,-1500.0,0.00012168,2]
[419013620,1774752640016,-500.0,0.00012195,2]
[419013621,1774752640025,-1931.9269578,0.00012224,2]
[419013622,1774752640034,-200.0,0.00012261,2]
[419013623,1774752640044,-257.87,0.00012262,2]
[419013624,1774752640053,-436.96672003,0.00012328,2]
[419013625,1774752640063,-436.96672003,0.00012328,2]
[419013626,1774752640072,-1995.7881,0.00012344,2]
[419013627,1774752640082,-3082.573726,0.00012344,2]
[419013628,1774752640092,-645.89,0.00012361,2]
[419013629,1774752640102,-1500.0,0.00012368,2]
[419013630,1774752640111,-180.933305,0.00012395,2]
[419013631,1774752640120,-500.0,0.00012469,2]
[419013632,1774752640129,-42679.9001324,0.00012564,2]
[419013633,1774752640139,-24366.81486875,0.00012596,2]
[419013634,1774752640148,-150.0,0.0001262,2]
[419013635,1774752640158,-272.17771,0.00012621,2]
[419013636,1774752640167,-645.89,0.00012635,2]
[419013637,1774752640177,-10482.6572138,0.00012678,2]
[419013638,1774752640186,-626.99704096,0.00012681,2]
[419013639,1774752640195,-5822.6618979,0.00012707,2]
[419013640,1774752640205,-2000.0,0.00012716,2]
[419013641,1774752640214,-1172.12760916,0.00012716,2]
[419013642,1774752640223,-2000.0,0.00012716,2]
[419013643,1774752640232,-2000.0,0.00012716,2]
[419013644,1774752640241,-500.0,0.00012743,2]
[419013645,1774752640250,-200.0,0.00012809,2]
[419013646,1774752640259,-257.87,0.00012846,2]
[419013647,1774752640269,-288.495785,0.00012857,2]
[419013648,1774752640278,-371.908608,0.00012857,2]
[419013649,1774752640287,-323.317289,0.00012867,2]
[419013650,1774752640298,-1600.0,0.00012893,2]
[419013651,1774752640307,-150.4394,0.000129,2]
[419013652,1774752640316,-645.89,0.00012909,2]
[419013653,1774752640326,-2000.0,0.00012916,2]
[419013654,1774752640336,-224.050401,0.00012951,2]
[419013655,1774752640345,-2000.0,0.00013034,2]
[419013656,1774752640355,-436.96672003,0.00013042,2]
[419013657,1774752640365,-2338.9969829,0.00013045,2]
[419013658,1774752640376,-1299.2114817,0.00013082,2]
[419013659,1774752640385,-42679.9001324,0.00013119,2]
[419013660,1774752640394,-24366.81486875,0.0001313,2]
[419013661,1774752640404,-433.0,0.00013155,2]
[419013662,1774752640413,-645.89222207,0.00013183,2]
[419013663,1774752640423,-587.0,0.00013248,2]
[419013664,1774752640432,-647.88588496,0.00013264,2]
[419013665,1774752640442,-2500.0,0.00013264,2]
[419013666,1774752640452,-505.1887513,0.00013264,2]
[419013667,1774752640462,-2351.0,0.00013274,2]
[419013668,1774752640471,-280.69815397,0.00013357,2]
[419013669,1774752640481,-158.78250268,0.00013399,2]
[419013670,1774752640490,-1931.9269578,0.00013413,2]
[419013671,1774752640499,-3240.0,0.00013425,2]
[419013672,1774752640509,-257.87,0.0001343,2]
[419013673,1774752640519,-595.96856595,0.00013464,2]
[419013674,1774752640528,-626.99704096,0.00013486,2]
[419013675,1774752640537,-250.09143492,0.00013486,2]
[419013676,1774752640546,-7509.7700948,0.00013486,2]
[419013677,1774752640556,-1200.55551872,0.00013486,2]
[419013678,1774752640566,-24366.81486875,0.00013664,2]
[419013679,1774752640575,-42679.9001324,0.00013674,2]
[419013680,1774752640585,-552.09,0.00013698,2]
[419013681,1774752640595,-552.09,0.00013698,2]
[419013682,1774752640605,-552.09,0.00013698,2]
[419013683,1774752640614,-552.09,0.00013698,2]
[419013684,1774752640624,-552.09,0.00013698,2]
[419013685,1774752640633,-552.09,0.00013698,2]
[419013686,1774752640643,-552.09,0.00013698,2]
[419013687,1774752640652,-552.09,0.00013698,2]
[419013688,1774752640663,-552.09,0.00013698,2]
[419013689,1774752640673,-552.09,0.00013698,2]
[419013690,1774752640682,-552.09,0.00013698,2]
[419013691,1774752640691,-552.09,0.00013698,2]
[419013692,1774752640702,-552.09,0.00013698,2]
[419013693,1774752640711,-552.09,0.00013698,2]
[419013694,1774752640722,-552.09,0.00013698,2]
[419013695,1774752640732,-552.09,0.00013698,2]
[419013696,1774752640742,-552.09,0.00013698,2]
[419013697,1774752640752,-552.09,0.00013698,2]
[419013698,1774752640761,-552.09,0.00013698,2]
[419013699,1774752640771,-500.0,0.00013698,2]
[419013700,1774752640781,-513.22970324,0.00013698,2]
[419013701,1774752640791,-500.0,0.00013698,2]
[419013702,1774752640801,-500.0,0.00013698,2]
[419013703,1774752640810,-500.0,0.00013698,2]
[419013704,1774752640820,-500.0,0.00013698,2]
[419013705,1774752640829,-500.0,0.00013698,2]
[419013706,1774752640839,-217.38717604,0.00013698,2]
[419013707,1774752640849,-500.0,0.00013698,2]
[419013708,1774752640858,-500.0,0.00013698,2]
[419013709,1774752640868,-500.0,0.00013698,2]
[419013710,1774752640880,-500.0,0.00013698,2]
[419013711,1774752640889,-500.0,0.00013698,2]
[419013712,1774752640898,-500.0,0.00013698,2]
[419013713,1774752640907,-336.64294585,0.00013698,2]
[419013714,1774752640916,-500.0,0.00013698,2]
[419013715,1774752641020,-289.69293567,0.00013698,2]
[419013716,1774752641030,-500.0,0.00013698,2]
[419013717,1774752641039,-500.0,0.00013698,2]
[419013718,1774752641049,-500.0,0.00013698,2]
[419013719,1774752641059,-500.0,0.00013698,2]
[419013720,1774752641069,-500.0,0.00013698,2]
[419013721,1774752641078,-500.0,0.00013698,2]
[419013722,1774752641087,-500.0,0.00013698,2]
[419013723,1774752641097,-421.06308427,0.00013698,2]
[419013724,1774752641106,-500.0,0.00013698,2]
[419013725,1774752641116,-500.0,0.00013698,2]
[419013726,1774752641125,-500.0,0.00013698,2]
[419013727,1774752641134,-247.12633402,0.00013698,2]
[419013728,1774752641143,-500.0,0.00013698,2]
[419013729,1774752641152,-500.0,0.00013698,2]
[419013730,1774752641162,-500.0,0.00013698,2]
[419013731,1774752641171,-500.0,0.00013698,2]
[419013732,1774752641180,-504.61807419,0.00013698,2]
[419013733,1774752641189,-500.0,0.00013698,2]
[419013734,1774752641199,-500.0,0.00013698,2]
[419013735,1774752641208,-500.0,0.00013698,2]
[419013736,1774752641217,-580.62432508,0.00013698,2]
[419013737,1774752641226,-500.0,0.00013698,2]
[419013738,1774752641236,-500.0,0.00013698,2]
[419013739,1774752641245,-507.74203298,0.00013698,2]
[419013740,1774752641255,-563.09074423,0.00013698,2]
[419013741,1774752641264,-500.0,0.00013698,2]
[419013742,1774752641275,-500.0,0.00013698,2]
[419013743,1774752641285,-500.0,0.00013698,2]
[419013744,1774752641295,-505.93653105,0.00013698,2]
[419013745,1774752641304,-511.61768064,0.00013698,2]
[419013746,1774752641314,-587.57676003,0.00013698,2]
[419013747,1774752641323,-500.0,0.00013698,2]
[419013748,1774752641334,-500.0,0.00013698,2]
[419013749,1774752641345,-500.0,0.00013698,2]
[419013750,1774752641354,-500.0,0.00013698,2]
[419013751,1774752641364,-500.0,0.00013698,2]
[419013752,1774752641373,-389.61112945,0.00013698,2]
[419013753,1774752641383,-500.0,0.00013698,2]
[419013754,1774752641392,-500.0,0.00013698,2]
[419013755,1774752641401,-500.0,0.00013698,2]
[419013756,1774752641411,-500.0,0.00013698,2]
[419013757,1774752641420,-500.0,0.00013698,2]
[419013758,1774752641430,-500.0,0.00013698,2]
[419013759,1774752641439,-500.0,0.00013698,2]
[419013760,1774752641449,-500.0,0.00013698,2]
[419013761,1774752641458,-500.0,0.00013698,2]
[419013762,1774752641467,-500.0,0.00013698,2]
[419013763,1774752641476,-500.0,0.00013698,2]
[419013764,1774752641486,-150.16805847,0.00013698,2]
[419013765,1774752641495,-505.30350392,0.00013698,2]
[419013766,1774752641504,-500.0,0.00013698,2]
[419013767,1774752641513,-500.0,0.00013698,2]
[419013768,1774752641523,-281.51766077,0.00013698,2]
[419013769,1774752641532,-500.0,0.00013698,2]
[419013770,1774752641542,-500.0,0.00013698,2]
[419013771,1774752641551,-500.0,0.00013698,2]
[419013772,1774752641561,-500.0,0.00013698,2]
[419013773,1774752641570,-162.75378098,0.00013698,2]
[419013774,1774752641579,-500.0,0.00013698,2]
[419013775,1774752641589,-500.0,0.00013698,2]
[419013776,1774752641599,-500.0,0.00013698,2]
[419013777,1774752641608,-500.0,0.00013698,2]
[419013778,1774752641617,-500.0,0.00013698,2]
[419013779,1774752641627,-500.0,0.00013698,2]
[419013780,1774752641636,-500.0,0.00013698,2]
[419013781,1774752641646,-500.0,0.00013698,2]
[419013782,1774752641655,-500.0,0.00013698,2]
[419013783,1774752641665,-500.0,0.00013698,2]
[419013784,1774752641675,-500.0,0.00013698,2]
[419013785,1774752641684,-500.0,0.00013698,2]
[419013786,1774752641694,-500.0,0.00013698,2]
[419013787,1774752641704,-500.0,0.00013698,2]
[419013788,1774752641713,-500.0,0.00013698,2]
[419013789,1774752641722,-500.0,0.00013698,2]
[419013790,1774752641732,-500.0,0.00013698,2]
[419013791,1774752641742,-500.0,0.00013698,2]
[419013792,1774752641751,-631.42723728,0.00013698,2]
[419013793,1774752641761,-150.0,0.00013699,2]
[419013794,1774752641771,-150.0,0.00013699,2]
[419013795,1774752641781,-150.0,0.00013699,2]
[419013796,1774752641791,-150.0,0.00013699,2]
[419013797,1774752641800,-150.0,0.00013699,2]
[419013798,1774752641810,-371.26,0.00013699,2]
[419013799,1774752641820,-303.4827321,0.00013699,2]
[419013800,1774752641829,-161.75757125,0.00013699,2]
[419013801,1774752641840,-500.79006539,0.00013699,2]
[419013802,1774752641850,-500.0,0.00013699,2]
[419013803,1774752641859,-500.0,0.00013699,2]
[419013804,1774752641868,-164.64289673,0.00013699,2]
[419013805,1774752641878,-500.0,0.00013699,2]
[419013806,1774752641887,-500.0,0.00013699,2]
[419013807,1774752641897,-500.0,0.00013699,2]
[419013808,1774752641906,-500.0,0.00013699,2]
[419013809,1774752641916,-163.45026092,0.00013699,2]
[419013810,1774752641926,-337.48789903,0.00013699,2]
[419013811,1774752641936,-500.0,0.00013699,2]
[419013812,1774752641946,-500.0,0.00013699,2]
[419013813,1774752641956,-165.20736909,0.00013699,2]
[419013814,1774752641966,-500.0,0.00013699,2]
[419013815,1774752641976,-500.0,0.00013699,2]
[419013816,1774752641985,-500.0,0.00013699,2]
[419013817,1774752641995,-500.68353771,0.00013699,2]
[419013818,1774752642005,-500.0,0.00013699,2]
[419013819,1774752642015,-500.61251814,0.00013699,2]
[419013820,1774752642025,-500.0,0.00013699,2]
[419013821,1774752642035,-500.0,0.00013699,2]
[419013822,1774752642044,-500.0,0.00013699,2]
[419013823,1774752642054,-500.0,0.00013699,2]
[419013824,1774752642063,-500.0,0.00013699,2]
[419013825,1774752642072,-500.0,0.00013699,2]
[419013826,1774752642082,-166.38309596,0.00013699,2]
[419013827,1774752642091,-500.48512281,0.00013699,2]
[419013828,1774752642101,-500.0,0.00013699,2]
[419013829,1774752642111,-500.0,0.00013699,2]
[419013830,1774752642121,-160.27279954,0.00013699,2]
[419013831,1774752642131,-500.11753077,0.00013699,2]
[419013832,1774752642140,-518.51040499,0.00013699,2]
[419013833,1774752642150,-500.0,0.00013699,2]
[419013834,1774752642160,-501.05408276,0.00013699,2]
[419013835,1774752642169,-500.0,0.00013699,2]
[419013836,1774752642179,-500.79800767,0.00013699,2]
[419013837,1774752642188,-500.0,0.00013699,2]
[419013838,1774752642200,-254.72596748,0.00013699,2]
[419013839,1774752642210,-709.29,0.000137,2]
[419013840,1774752642219,-150.0,0.000137,2]
[419013841,1774752642229,-217.8882415,0.000137,2]
[419013842,1774752642239,-1077.56,0.000137,2]
[419013843,1774752642248,-445.31,0.000137,2]
[419013844,1774752642258,-648.6,0.000137,2]
[419013845,1774752642267,-7380.22,0.000137,2]
[419013846,1774752642279,-501.0,0.00013753,2]
[419013847,1774752642291,-2005.96226832,0.00013812,2]
[419013848,1774752642300,-552.09,0.00013899,2]
[419013849,1774752642310,-552.09,0.00013899,2]
[419013850,1774752642320,-552.09,0.00013899,2]
[419013851,1774752642329,-552.09,0.00013899,2]
[419013853,1774752642339,-552.28062743,0.00013899,2]
[419013854,1774752642349,-349.93,0.00013931,2]
[419013855,1774752642359,-150.0,0.00013973,2]
[419013856,1774752642369,-150.0,0.00013973,2]
[419013857,1774752642378,-150.0,0.00013973,2]
[419013858,1774752642387,-150.0,0.00013973,2]
[419013859,1774752642398,-250.0,0.00013997,2]
[419013860,1774752642407,-514.0,0.00014,2]
[419013861,1774752642416,-872.0709265,0.00014006,2]
[419013862,1774752642426,-257.87,0.00014014,2]
[419013863,1774752642435,-1600.0,0.00014182,2]
[419013864,1774752642445,-153.38,0.00014198,2]
[419013865,1774752642454,-24366.81486875,0.00014198,2]
[419013866,1774752642464,-42679.9001324,0.00014229,2]
[419013867,1774752642474,-150.0,0.00014247,2]
[419013868,1774752642484,-150.0,0.00014247,2]
[419013869,1774752642494,-150.0,0.00014247,2]
[419013870,1774752642503,-150.0,0.00014247,2]
[419013871,1774752642512,-1000.0,0.00014247,2]
[419013872,1774752642522,-1000.0,0.00014247,2]
[419013873,1774752642531,-374.86231475,0.00014247,2]
[419013874,1774752642541,-679.35577738,0.00014247,2]
[419013876,1774752642550,-1001.92036949,0.00014247,2]
[419013877,1774752642559,-1000.0,0.00014247,2]
[419013879,1774752642568,-1000.0,0.00014247,2]
[419013880,1774752642577,-1000.0,0.00014247,2]
[419013881,1774752642587,-507.95072429,0.00014247,2]
[419013882,1774752642596,-1000.77161479,0.00014247,2]
[419013883,1774752642605,-1000.0,0.00014247,2]
[419013884,1774752642614,-1000.0,0.00014247,2]
[419013885,1774752642624,-1000.0,0.00014247,2]
[419013886,1774752642634,-1000.0,0.00014247,2]
[419013887,1774752642643,-1000.0,0.00014247,2]
[419013888,1774752642652,-1000.0,0.00014247,2]
[419013889,1774752642662,-1000.0,0.00014247,2]
[419013890,1774752642672,-501.64028841,0.00014247,2]
[419013891,1774752642682,-1000.0,0.00014247,2]
[419013892,1774752642691,-1000.0,0.00014247,2]
[419013893,1774752642702,-1000.0,0.00014247,2]
[419013894,1774752642711,-502.27060351,0.00014247,2]
[419013895,1774752642721,-1001.84409587,0.00014247,2]
[419013896,1774752642731,-626.99704096,0.00014291,2]
[419013897,1774752642741,-2000.0,0.00014337,2]
[419013898,1774752642750,-154.53434814,0.00014396,2]
[419013899,1774752642760,-736.0,0.00014406,2]
[419013900,1774752642770,-823.0,0.00014559,2]
[419013901,1774752642779,-257.87,0.00014598,2]
[419013902,1774752642789,-150.8801,0.000146,2]
[419013903,1774752642798,-1931.9269578,0.00014602,2]
[419013904,1774752642808,-3292.0,0.00014602,2]
[419013905,1774752642817,-24366.81486875,0.00014732,2]
[419013906,1774752642827,-9552.16786547,0.00014773,2]
[419013907,1774752642836,-500.0,0.00014773,2]
[419013908,1774752642845,-151.0,0.00014773,2]
[419013909,1774752642855,-187.28708856,0.00014773,2]
[419013910,1774752642864,-262.90206542,0.00014773,2]
[419013911,1774752642874,-42679.9001324,0.00014785,2]
[419013912,1774752642883,-1500.0,0.00014795,2]
[419013913,1774752642892,-1500.0,0.00014795,2]
[419013914,1774752642902,-910.63975449,0.00014795,2]
[419013915,1774752642911,-684.37970889,0.00014795,2]
[419013916,1774752642920,-1008.27174746,0.00014795,2]
[419013917,1774752642930,-1076.69688643,0.00014795,2]